fUSD/lending_fUSD_20240919
["ID","MTS","AMOUNT","RATE_DAILY","PERIOD"]
[338504015,1726708260360,-1013.94,0.00014794,2]
[338504016,1726708260370,-981.4,0.00014794,2]
[338504017,1726708260380,-549.77,0.00014794,2]
[338504018,1726708260390,-500.0,0.00014794,2]
[338504019,1726708260399,-2527.19,0.00014794,2]
[338504020,1726708260409,-637.72,0.00014794,2]
[338504021,1726708260419,-954.45,0.00014794,2]
[338504022,1726708260428,-1894.99,0.00014794,2]
[338504023,1726708260438,-500.0,0.00014794,2]
[338504024,1726708260448,-500.0,0.00014794,2]
[338504025,1726708260459,-1014.95,0.00014794,2]
[338504026,1726708260468,-1360.5,0.00014794,2]
[338504027,1726708260478,-2232.32,0.00014794,2]
[338504028,1726708260488,-500.0,0.00014794,2]
[338504029,1726708260497,-500.0,0.00014794,2]
[338504030,1726708260507,-500.0,0.00014794,2]
[338504031,1726708260516,-1042.34,0.00014794,2]
[338504032,1726708260526,-500.0,0.00014794,2]
[338504033,1726708260535,-1743.77,0.00014794,2]
[338504034,1726708260548,-500.0,0.00014794,2]
[338504035,1726708260558,-1869.89,0.00014794,2]
[338504036,1726708260567,-2373.99,0.00014794,2]
[338504037,1726708260577,-500.0,0.00014794,2]
[338504038,1726708260586,-1109.75,0.00014794,2]
[338504039,1726708260595,-1361.36,0.00014794,2]
[338504040,1726708260604,-500.0,0.00014794,2]
[338504041,1726708260614,-500.0,0.00014794,2]
[338504042,1726708260623,-1006.56,0.00014794,2]
[338504043,1726708260633,-981.77,0.00014794,2]
[338504044,1726708260643,-3290.45,0.00014794,2]
[338504045,1726708260652,-528.86,0.00014794,2]
[338504046,1726708260662,-500.0,0.00014794,2]
[338504047,1726708260671,-500.0,0.00014794,2]
[338504048,1726708260681,-661.06,0.00014794,2]
[338504049,1726708260690,-500.0,0.00014794,2]
[338504050,1726708260699,-500.0,0.00014794,2]
[338504051,1726708260709,-1585.75,0.00014794,2]
[338504052,1726708260718,-500.0,0.00014794,2]
[338504053,1726708260727,-500.0,0.00014794,2]
[338504054,1726708260736,-3217.42,0.00014794,2]
[338504055,1726708260746,-563.15,0.00014794,2]
[338504056,1726708260755,-2220.91,0.00014794,2]
[338504057,1726708260765,-500.0,0.00014794,2]
[338504058,1726708260774,-590.0,0.00014794,2]
[338504059,1726708260784,-1218.22,0.00014794,2]
[338504060,1726708260795,-500.0,0.00014794,2]
[338504061,1726708260805,-500.0,0.00014794,2]
[338504062,1726708260814,-500.0,0.00014794,2]
[338504063,1726708260824,-500.0,0.00014794,2]
[338504064,1726708260833,-500.0,0.00014794,2]
[338504065,1726708260843,-609.25,0.00014794,2]
[338504066,1726708260853,-500.0,0.00014794,2]
[338504067,1726708260862,-500.0,0.00014794,2]
[338504068,1726708260872,-500.0,0.00014794,2]
[338504069,1726708260885,-500.0,0.00014794,2]
[338504070,1726708260894,-6160.07,0.00014794,2]
[338504071,1726708260903,-2596.83,0.00014794,2]
[338504072,1726708260913,-755.93,0.00014794,2]
[338504073,1726708260924,-500.0,0.00014794,2]
[338504074,1726708260933,-646.81,0.00014794,2]
[338504075,1726708260942,-1627.34,0.00014794,2]
[338504076,1726708260955,-500.0,0.00014794,2]
[338504077,1726708260965,-601.35,0.00014794,2]
[338504078,1726708260975,-500.0,0.00014794,2]
[338504079,1726708260985,-4413.02,0.00014794,2]
[338504080,1726708260995,-500.0,0.00014794,2]
[338504081,1726708261004,-6329.46,0.00014794,2]
[338504082,1726708261014,-500.0,0.00014794,2]
[338504083,1726708261023,-500.0,0.00014794,2]
[338504084,1726708261032,-500.0,0.00014794,2]
[338504085,1726708261044,-698.68,0.00014794,2]
[338504086,1726708261054,-500.0,0.00014794,2]
[338504087,1726708261063,-500.0,0.00014794,2]
[338504088,1726708261073,-1818.04,0.00014794,2]
[338504089,1726708261082,-2784.05,0.00014794,2]
[338504090,1726708261091,-500.0,0.00014794,2]
[338504091,1726708261101,-500.0,0.00014794,2]
[338504092,1726708261111,-578.14,0.00014794,2]
[338504093,1726708261120,-235.65,0.00014794,2]
[338504094,1726708261130,-1669.27,0.00014794,2]
[338504095,1726708261139,-500.0,0.00014794,2]
[338504096,1726708261149,-1752.44,0.00014794,2]
[338504097,1726708261158,-527.71,0.00014794,2]
[338504098,1726708261168,-2973.37,0.00014794,2]
[338504099,1726708261178,-701.15,0.00014794,2]
[338504100,1726708261187,-1880.02,0.00014794,2]
[338504101,1726708261197,-500.0,0.00014794,2]
[338504102,1726708261206,-500.0,0.00014794,2]
[338504103,1726708261216,-500.0,0.00014794,2]
[338504104,1726708261225,-500.0,0.00014794,2]
[338504105,1726708261235,-1343.55,0.00014794,2]
[338504106,1726708261244,-4485.64,0.00014794,2]
[338504107,1726708261253,-500.0,0.00014794,2]
[338504108,1726708261263,-500.0,0.00014794,2]
[338504109,1726708261272,-500.0,0.00014794,2]
[338504110,1726708261281,-500.0,0.00014794,2]
[338504111,1726708261291,-500.0,0.00014794,2]
[338504112,1726708261302,-1166.17,0.00014794,2]
[338504113,1726708261311,-755.77,0.00014794,2]
[338504114,1726708261320,-500.0,0.00014794,2]
[338504115,1726708261329,-919.61,0.00014794,2]
[338504116,1726708261338,-500.0,0.00014794,2]
[338504117,1726708261348,-500.0,0.00014794,2]
[338504118,1726708261357,-500.0,0.00014794,2]
[338504119,1726708261366,-500.0,0.00014794,2]
[338504120,1726708261376,-1010.83,0.00014794,2]
[338504121,1726708261385,-3475.56,0.00014794,2]
[338504122,1726708261394,-500.0,0.00014794,2]
[338504123,1726708261403,-596.44,0.00014794,2]
[338504124,1726708261412,-2961.71,0.00014794,2]
[338504125,1726708261421,-500.0,0.00014794,2]
[338504126,1726708261431,-1090.48,0.00014794,2]
[338504127,1726708261440,-1400.15,0.00014794,2]
[338504128,1726708261449,-3804.57,0.00014794,2]
[338504129,1726708261458,-540.23,0.00014794,2]
[338504130,1726708261467,-500.0,0.00014794,2]
[338504131,1726708261476,-693.41,0.00014794,2]
[338504132,1726708261485,-829.21,0.00014794,2]
[338504133,1726708261495,-778.09,0.00014794,2]
[338504134,1726708261504,-2642.03,0.00014794,2]
[338504135,1726708261514,-1771.08,0.00014794,2]
[338504136,1726708261523,-746.28,0.00014794,2]
[338504137,1726708261533,-1352.18,0.00014794,2]
[338504138,1726708261543,-519.94,0.00014794,2]
[338504139,1726708261553,-500.0,0.00014794,2]
[338504140,1726708261562,-500.0,0.00014794,2]
[338504141,1726708261572,-500.0,0.00014794,2]
[338504142,1726708261581,-1564.96,0.00014794,2]
[338504143,1726708261591,-511.06,0.00014794,2]
[338504144,1726708261600,-500.0,0.00014794,2]
[338504145,1726708261610,-504.99,0.00014794,2]
[338504146,1726708261620,-500.0,0.00014794,2]
[338504147,1726708261630,-1522.97,0.00014794,2]
[338504148,1726708261639,-513.71,0.00014794,2]
[338504149,1726708261649,-953.71,0.00014794,2]
[338504150,1726708261658,-500.0,0.00014794,2]
[338504151,1726708261668,-500.0,0.00014794,2]
[338504152,1726708261678,-500.0,0.00014794,2]
[338504153,1726708261687,-500.0,0.00014794,2]
[338504154,1726708261697,-565.52,0.00014794,2]
[338504155,1726708261707,-500.0,0.00014794,2]
[338504156,1726708261716,-500.0,0.00014794,2]
[338504157,1726708261726,-534.11146314,0.00014794,2]
[338504158,1726708261736,-1025.22,0.00014794,2]
[338504159,1726708261747,-375.56291222,0.00014794,2]
[338504160,1726708261757,-3107.7,0.00014794,2]
[338504161,1726708261767,-500.0,0.00014794,2]
[338504162,1726708261776,-1326.09,0.00014794,2]
[338504163,1726708261786,-3787.1,0.00014794,2]
[338504164,1726708261798,-1427.52,0.00014794,2]
[338504165,1726708261807,-2489.28,0.00014794,2]
[338504166,1726708261817,-521.18,0.00014794,2]
[338504167,1726708261826,-500.0,0.00014794,2]
[338504168,1726708261835,-1190.4,0.00014794,2]
[338504169,1726708261845,-540.6,0.00014794,2]
[338504170,1726708261855,-500.0,0.00014794,2]
[338504171,1726708261865,-272.21494754,0.00014794,2]
[338504172,1726708261875,-500.0,0.00014794,2]
[338504173,1726708261887,-500.0,0.00014794,2]
[338504174,1726708261896,-500.0,0.00014794,2]
[338504175,1726708261905,-429.24554088,0.00014794,2]
[338504176,1726708261915,-715.81,0.00014794,2]
[338504177,1726708261926,-500.0,0.00014794,2]
[338504178,1726708261935,-1105.75,0.00014794,2]
[338504179,1726708261945,-500.0,0.00014794,2]
[338504180,1726708261954,-500.0,0.00014794,2]
[338504181,1726708261966,-1231.06,0.00014794,2]
[338504182,1726708261976,-500.0,0.00014794,2]
[338504183,1726708261987,-545.55,0.00014794,2]
[338504184,1726708261996,-1071.13,0.00014794,2]
[338504185,1726708262006,-500.0,0.00014794,2]
[338504186,1726708262016,-500.0,0.00014794,2]
[338504187,1726708262027,-500.0,0.00014794,2]
[338504188,1726708262037,-1094.79,0.00014794,2]
[338504189,1726708262049,-553.37,0.00014794,2]
[338504190,1726708262064,-1423.87,0.00014794,2]
[338504191,1726708262073,-500.0,0.00014794,2]
[338504192,1726708262083,-500.0,0.00014794,2]
[338504193,1726708262092,-500.0,0.00014794,2]
[338504194,1726708262102,-3228.27,0.00014794,2]
[338504195,1726708262111,-500.0,0.00014794,2]
[338504196,1726708262121,-500.0,0.00014794,2]
[338504197,1726708262130,-500.0,0.00014794,2]
[338504198,1726708262140,-1133.99,0.00014794,2]
[338504199,1726708262149,-500.0,0.00014794,2]
[338504200,1726708262159,-500.0,0.00014794,2]
[338504201,1726708262169,-1557.26,0.00014794,2]
[338504202,1726708262179,-983.16,0.00014794,2]
[338504203,1726708262188,-500.0,0.00014794,2]
[338504204,1726708262198,-4373.48,0.00014794,2]
[338504205,1726708262207,-757.32,0.00014794,2]
[338504206,1726708262217,-500.0,0.00014794,2]
[338504207,1726708262227,-500.0,0.00014794,2]
[338504208,1726708262237,-500.0,0.00014794,2]
[338504209,1726708262247,-1690.69,0.00014794,2]
[338504210,1726708262259,-731.41,0.00014794,2]
[338504211,1726708262269,-500.0,0.00014794,2]
[338504212,1726708262279,-191.32333057,0.00014794,2]
[338504213,1726708262289,-1101.28,0.00014794,2]
[338504214,1726708262303,-500.0,0.00014794,2]
[338504215,1726708262315,-1646.63,0.00014794,2]
[338504216,1726708262324,-500.0,0.00014794,2]
[338504217,1726708262335,-1247.31,0.00014794,2]
[338504218,1726708262345,-1672.22,0.00014794,2]
[338504219,1726708262355,-2046.51,0.00014794,2]
[338504220,1726708262364,-2264.64,0.00014794,2]
[338504221,1726708262374,-1476.54,0.00014794,2]
[338504222,1726708262383,-1644.68,0.00014794,2]
[338504223,1726708262392,-1035.97,0.00014794,2]
[338504224,1726708262402,-500.0,0.00014794,2]
[338504225,1726708262411,-2927.77,0.00014794,2]
[338504226,1726708262420,-500.0,0.00014794,2]
[338504227,1726708262430,-500.0,0.00014794,2]
[338504228,1726708262439,-1339.51,0.00014794,2]
[338504229,1726708262448,-500.0,0.00014794,2]
[338504230,1726708262458,-500.0,0.00014794,2]
[338504231,1726708262467,-500.0,0.00014794,2]
[338504232,1726708262477,-500.0,0.00014794,2]
[338504233,1726708262487,-1139.97,0.00014794,2]
[338504234,1726708262498,-500.0,0.00014794,2]
[338504235,1726708262508,-1236.76,0.00014794,2]
[338504236,1726708262518,-500.0,0.00014794,2]
[338504237,1726708262528,-3189.86,0.00014794,2]
[338504238,1726708262541,-1044.37,0.00014794,2]
[338504239,1726708262567,-6438.27,0.00014794,2]
[338504240,1726708262576,-1372.08,0.00014794,2]
[338504241,1726708262586,-500.0,0.00014794,2]
[338504242,1726708262596,-1817.98,0.00014794,2]
[338504243,1726708262606,-588.07687822,0.00014794,2]
[338504244,1726708262616,-1120.52,0.00014794,2]
[338504245,1726708262627,-500.0,0.00014794,2]
[338504246,1726708262637,-500.0,0.00014794,2]
[338504247,1726708262647,-500.0,0.00014794,2]
[338504248,1726708262658,-500.0,0.00014794,2]
[338504249,1726708262668,-1038.98,0.00014794,2]
[338504250,1726708262679,-3171.54,0.00014794,2]
[338504251,1726708262690,-3021.62,0.00014794,2]
[338504252,1726708262700,-1482.35,0.00014794,2]
[338504253,1726708262710,-500.0,0.00014794,2]
[338504254,1726708262720,-500.0,0.00014794,2]
[338504255,1726708262730,-197.32845752,0.00014794,2]
[338504256,1726708263591,-302.67154248,0.00014794,2]
[338504257,1726708263602,-500.0,0.00014794,2]
[338504258,1726708263613,-597.06,0.00014794,2]
[338504259,1726708263623,-500.0,0.00014794,2]
[338504260,1726708263634,-532.16,0.00014794,2]
[338504261,1726708263645,-586.61,0.00014794,2]
[338504262,1726708263656,-500.0,0.00014794,2]
[338504263,1726708263666,-520.02467101,0.00014794,2]
[338504264,1726708263698,-827.86532899,0.00014794,2]
[338504265,1726708263709,-500.0,0.00014794,2]
[338504266,1726708263720,-287.2231888,0.00014794,2]
[338504267,1726708263732,-212.7768112,0.00014794,2]
[338504268,1726708263743,-336.6845214,0.00014794,2]
[338504269,1726708306252,500.0,0.00011164,2]
[338504270,1726708329873,500.0,0.00011164,2]
[338504271,1726708415664,500.0,0.00011164,2]
[338504272,1726708470734,150.0,0.00014642,120]
[338504273,1726708494471,500.0,0.00011164,2]
[338504274,1726708561372,175.36,0.00010959,2]
[338504275,1726708567499,1050.0,0.00011,2]
[338504277,1726708781387,339.86,0.00011467,2]
[338504284,1726709059477,531.4,0.00012711,2]
[338504285,1726709124532,159.67,0.00010959,2]
[338504286,1726709236007,749.49,0.00010959,2]
[338504287,1726709240522,397.07226404,0.00012743,2]
[338504288,1726709267264,250.0,0.00012711,2]
[338504289,1726709299706,337.69,0.00011057,2]
[338504300,1726709431574,-325.89,0.0001288,2]
[338504301,1726709431586,-3641.40814063,0.0001288,2]
[338504302,1726709431598,-2327.17833382,0.0001288,2]
[338504303,1726709431607,-343.66309218,0.0001288,2]
[338504304,1726709431618,-9.1537119,0.0001288,2]
[338504305,1726709431627,-201.24993196,0.00012899,2]
[338504306,1726709431637,-425.4476815,0.000129,2]
[338504307,1726709431648,-404.0365253,0.000129,2]
[338504308,1726709431658,-6056.1930932,0.000129,2]
[338504309,1726709431667,-189.92404741,0.000129,2]
[338504310,1726709431677,-16520.82,0.00012936,2]
[338504311,1726709431687,-602.19037199,0.00012973,2]
[338504312,1726709431697,-311.37845788,0.00012973,2]
[338504313,1726709431705,-500.0,0.00012973,2]
[338504314,1726709431715,-502.0112254,0.00012973,2]
[338504315,1726709431724,-261.05682192,0.0001298,2]
[338504316,1726709431733,-322.67939192,0.0001298,2]
[338504317,1726709431741,-647.5459108,0.0001298,2]
[338504318,1726709431750,-1000.0,0.00012981,2]
[338504319,1726709431759,-243.18611091,0.0001299,2]
[338504320,1726709431768,-154.85,0.0001299,2]
[338504321,1726709431777,-154.85,0.0001299,2]
[338504322,1726709431786,-154.85,0.0001299,2]
[338504323,1726709431803,-154.85,0.0001299,2]
[338504324,1726709431815,-154.85,0.0001299,2]
[338504325,1726709431824,-154.85,0.0001299,2]
[338504326,1726709431834,-154.85,0.0001299,2]
[338504327,1726709431843,-154.85,0.0001299,2]
[338504328,1726709431852,-150.0,0.00012998,2]
[338504329,1726709431862,-408.64083747,0.00012999,2]
[338504330,1726709431931,-91.35916253,0.00012999,2]
[338504331,1726709431941,-387.80083747,0.00012999,2]
[338504332,1726709431953,-112.19916253,0.00012999,2]
[338504333,1726709431962,-432.56951627,0.00012999,2]
[338504334,1726709431971,-1250.89,0.00012999,2]
[338504335,1726709431981,-16437.47,0.00012999,2]
[338504336,1726709431990,-1100.0,0.00013,2]
[338504337,1726709431999,-414026.96210246,0.00013,2]
[338504340,1726709432010,-555.14114462,0.00013,2]
[338504342,1726709432022,-15951.6086617,0.00013,2]
[338504344,1726709432034,-5038.7342473,0.00013,2]
[338504346,1726709432045,-396127.56104043,0.00013,2]
[338504348,1726709432057,-1086.57806792,0.00013,2]
[338504350,1726709432068,-6855.93927133,0.00013,2]
[338504454,1726709437872,-3701.18399451,0.00013,2]
[338504455,1726709437907,-1264.25000003,0.00013,2]
[338504456,1726709437919,-32041.26908758,0.00013,2]
[338504457,1726709438035,-157261.05489097,0.00013,2]
[338504463,1726709439626,-1026.90713447,0.00013,2]
[338504464,1726709439637,-6377.33194364,0.00013,2]
[338504465,1726709439741,-1249.85893677,0.00013,2]
[338504466,1726709439752,-331.37356652,0.00013,2]
[338504467,1726709439764,-257.884,0.00013,2]
[338504505,1726709442645,-293.80853246,0.00013,2]
[338504506,1726709442656,-1728.53770147,0.00013,2]
[338504507,1726709442668,-378.703701,0.00013,2]
[338504508,1726709442679,-4143.31,0.00013,2]
[338504509,1726709442692,-2722.72632865,0.00013,2]
[338504510,1726709442703,-1383.95848256,0.00013,2]
[338504511,1726709442908,-656.86101804,0.00013,2]
[338504512,1726709442918,-445.03084536,0.00013,2]
[338504513,1726709442962,-443.4506406,0.00013,2]
[338504568,1726709446038,-24336.39090483,0.00013,2]
[338504570,1726709446048,-501800.84713555,0.00013,2]
[338504573,1726709446059,-5120.18609068,0.00013,2]
[338504575,1726709446070,-6657.96913708,0.00013,2]
[338504578,1726709446099,-2659.11323787,0.00013,2]
[338504581,1726709446109,-3154.1894036,0.00013,2]
[338504583,1726709446120,-1552.725,0.00013,2]
[338504592,1726709446220,-15198.06703155,0.00013,2]
[338504594,1726709446231,-35510.06290173,0.00013,2]
[338504602,1726709457177,500.0,0.00011164,2]
[338504603,1726709457502,500.0,0.00011164,2]
[338504606,1726709493763,241.86343122,0.00014,120]
[338504607,1726709514113,300.0,0.000126,4]
[338504608,1726709514774,5736.51,0.000126,2]
[338504609,1726709516214,600.0,0.000127,4]
[338504610,1726709628489,176.91,0.00010959,2]
[338504611,1726709653963,14769.5109,0.000127,2]
[338504612,1726709666944,185.47909179,0.00012704,2]
[338504613,1726709674376,200.0,0.00012657,2]
[338504614,1726709676287,2001.49,0.000127,7]
[338504615,1726709701708,3427.12,0.000127,2]
[338504616,1726709723237,1000.0,0.000127,2]
[338504617,1726709765151,3000.0,0.000127,2]
[338504618,1726709778273,250.0,0.00012464,2]
[338504620,1726709854641,348.74,0.00010611,2]
[338504621,1726709893014,20165.66,0.0001248,2]
[338504622,1726709918917,200.0,0.00012529,2]
[338504623,1726709939505,184.44,0.00012479,2]
[338504624,1726710022820,250.0,0.00012432,2]
[338504625,1726710047917,150.0,0.00012552,2]
[338504626,1726710116803,-900.0,0.000128,4]
[338504627,1726710116825,-750.0,0.000129,4]
[338504628,1726710207787,591.44,0.00012559,2]
[338504629,1726710232219,4556.95,0.00012667,2]
[338504630,1726710293512,250.0,0.00012553,2]
[338504631,1726710321715,150.0,0.00011688,2]
[338504632,1726710321991,150.0,0.00012337,2]
[338504633,1726710372348,1050.0,0.00011,2]
[338504634,1726710390322,155.15,0.00010959,2]
[338504635,1726710438083,840.0,0.00012633,2]
[338504636,1726710450759,-150.0,0.00015024,120]
[338504637,1726710450819,-150.0,0.00015037,120]
[338504638,1726710450865,-150.0,0.00015064,120]
[338504639,1726710450950,-150.0,0.00015096,120]
[338504640,1726710450997,-150.0,0.00015221,120]
[338504641,1726710451040,-150.0,0.00015323,120]
[338504642,1726710451129,-150.0,0.00015579,120]
[338504643,1726710451395,-150.0,0.00015601,120]
[338504644,1726710451591,-150.0,0.00016461,120]
[338504645,1726710451674,-150.0,0.00016951,120]
[338504646,1726710451752,-150.0,0.00017096,120]
[338504647,1726710451795,-150.0,0.00017144,120]
[338504648,1726710451839,-150.0,0.0001721,120]
[338504649,1726710451943,-150.0,0.00017768,120]
[338504650,1726710452015,-150.0,0.00017846,120]
[338504651,1726710452091,-150.0,0.00018139,120]
[338504652,1726710452137,-150.0,0.00018243,120]
[338504653,1726710452183,-150.0,0.00018261,120]
[338504654,1726710452259,-150.0,0.00018373,120]
[338504655,1726710452308,-150.0,0.00018485,120]
[338504656,1726710452354,-150.0,0.00018564,120]
[338504657,1726710452430,-150.0,0.0001888,120]
[338504658,1726710452505,-150.0,0.0001898,120]
[338504659,1726710452551,-150.0,0.00019109,120]
[338504660,1726710452598,-150.0,0.00019162,120]
[338504661,1726710452644,-150.0,0.00019171,120]
[338504662,1726710452763,-150.0,0.00019844,120]
[338504663,1726710452811,-150.0,0.00019921,120]
[338504664,1726710452933,-150.0,0.00020576,120]
[338504665,1726710452985,-150.0,0.00020655,120]
[338504666,1726710453052,-150.0,0.00020938,120]
[338504667,1726710453102,-150.0,0.00021312,120]
[338504668,1726710453147,-150.0,0.00021374,120]
[338504669,1726710453193,-150.0,0.00021438,120]
[338504670,1726710453239,-150.0,0.00021507,120]
[338504671,1726710453287,-150.0,0.00021583,120]
[338504672,1726710453347,-150.0,0.00021998,120]
[338504675,1726710454725,338.57,0.00012668,2]
[338504678,1726710465617,346.94,0.00010805,2]
[338504682,1726710474835,-150.0,0.00022041,120]
[338504683,1726710474878,-150.0,0.0002225,120]
[338504684,1726710474925,-150.0,0.00022401,120]
[338504685,1726710474971,-150.0,0.00022442,120]
[338504686,1726710475016,-150.0,0.00022591,120]
[338504687,1726710475058,-150.0,0.00022599,120]
[338504688,1726710475101,-150.0,0.00023073,120]
[338504689,1726710475144,-150.0,0.0002317,120]
[338504690,1726710475187,-150.0,0.00023522,120]
[338504691,1726710475226,-150.0,0.00023698,120]
[338504692,1726710476375,500.0,0.00012671,2]
[338504693,1726710511335,150.0,0.00018662,120]
[338504696,1726710570795,150.0,0.0001991,120]
[338504702,1726710605516,158.797933,0.00012671,2]
[338504703,1726710631780,-250.0,0.00012791,2]
[338504706,1726710631791,-2964.3063157,0.000128,2]
[338504708,1726710631801,-1852.42,0.00012826,2]
[338504710,1726710631811,-460.14,0.00012855,2]
[338504712,1726710631822,-4252.84,0.00012855,2]
[338504713,1726710631832,-150.0,0.00012877,2]
[338504714,1726710631842,-150.0,0.00012899,2]
[338504715,1726710631853,-158.88368566,0.000129,2]
[338504716,1726710631862,-184.25015255,0.000129,2]
[338504717,1726710631872,-178.27810822,0.000129,2]
[338504718,1726710631881,-181.69185377,0.000129,2]
[338504719,1726710631890,-167.78396599,0.000129,2]
[338504720,1726710631900,-325.44583883,0.000129,2]
[338504721,1726710631910,-206.7960771,0.000129,2]
[338504722,1726710631919,-220.86655,0.000129,4]
[338504723,1726710631929,-158.797933,0.000129,4]
[338504724,1726710631938,-158.797933,0.000129,4]
[338504725,1726710631947,-5794.5679,0.000129,2]
[338504726,1726710631957,-500.0,0.00012973,2]
[338504727,1726710631967,-501.85967067,0.00012973,2]
[338504728,1726710631976,-500.0,0.00012973,2]
[338504729,1726710631985,-503.61317034,0.00012973,2]
[338504730,1726710631995,-200.36047922,0.00012973,2]
[338504731,1726710632004,-152.05302842,0.00012986,2]
[338504732,1726710632015,-499.99,0.00012986,2]
[338504733,1726710632025,-150.99,0.0001299,2]
[338504734,1726710632034,-163.99,0.0001299,2]
[338504735,1726710632044,-8551.2,0.0001299,2]
[338504736,1726710632054,-153.74,0.0001299,2]
[338504737,1726710632064,-153.74,0.0001299,2]
[338504738,1726710632073,-153.74,0.0001299,2]
[338504739,1726710632083,-153.74,0.0001299,2]
[338504740,1726710632092,-153.74,0.0001299,2]
[338504741,1726710632101,-1130.22420257,0.00012999,2]
[338504742,1726710632111,-520.80130707,0.00012999,2]
[338504743,1726710632120,-517.45088801,0.00012999,2]
[338504744,1726710632129,-501.16368886,0.00012999,2]
[338504745,1726710632138,-500.0,0.00012999,2]
[338504746,1726710632147,-500.0,0.00012999,2]
[338504747,1726710632156,-500.0,0.00012999,2]
[338504748,1726710632166,-330.37910172,0.00012999,2]
[338504750,1726710632175,-168.9514595,0.00012999,2]
[338504751,1726710632185,-451.721,0.00012999,2]
[338504752,1726710632194,-745.60041082,0.00012999,2]
[338504753,1726710632203,-150.29276505,0.00012999,2]
[338504754,1726710632212,-263686.69042593,0.00013,2]
[338504755,1726710632340,-609.86344662,0.00013,2]
[338504756,1726710632352,-5950.0,0.00013,2]
[338504757,1726710632363,-2399.99999998,0.00013,2]
[338504758,1726710632375,-3336.88164217,0.00013,2]
[338504759,1726710632386,-255.5570155,0.00013,2]
[338504760,1726710632397,-4223.30804722,0.00013,2]
[338504761,1726710632474,-117057.14017317,0.00013,2]
[338504762,1726710632485,-899.999998,0.00013,2]
[338504763,1726710632496,-5693.984656,0.00013,2]
[338504764,1726710632508,-41161.04968382,0.00013,2]
[338504765,1726710633447,500.0,0.00011154,2]
[338504766,1726710635918,150.0,0.00012727,2]
[338504769,1726710637823,-473.37949343,0.000129,2]
[338504770,1726710637838,-259.54,0.0001298,2]
[338504771,1726710637848,-3203.12662175,0.00013,2]
[338504772,1726710637860,-626.16993068,0.00013,2]
[338504773,1726710637872,-255.3477856,0.00013,2]
[338504774,1726710637884,-835.77,0.00013,2]
[338504775,1726710637965,-2735.53908701,0.00013,2]
[338504776,1726710637976,-12359.0,0.00013,2]
[338504777,1726710637987,-295.06692789,0.00013,2]
[338504778,1726710638110,-30831.79397011,0.00013,2]
[338504779,1726710638119,-1522070.5632989,0.00013,2]
[338504780,1726710638131,-29492.000001,0.00013,2]
[338504781,1726710638142,-602.5831822,0.00013,2]
[338504782,1726710638154,-653.67901261,0.00013,2]
[338504853,1726710639885,-42.57704733,0.0001299,2]
[338504854,1726710639899,-216.96295267,0.0001299,2]
[338504855,1726710639909,-167.55904733,0.0001299,2]
[338504856,1726710639922,-91.98095267,0.0001299,2]
[338504857,1726710639933,-238.40404734,0.00013,2]